fUST/lending_fUST_20240430
["ID","MTS","AMOUNT","RATE_DAILY","PERIOD"]
[324959758,1714470642136,-500.0,0.0003178,2]
[324959759,1714470642146,-500.0,0.0003178,2]
[324959760,1714470642155,-577.61,0.0003178,2]
[324959761,1714470642166,-500.0,0.0003178,30]
[324959762,1714470642176,-500.0,0.0003178,2]
[324959763,1714470642186,-500.0,0.0003178,2]
[324959764,1714470642196,-1679.92,0.0003178,2]
[324959765,1714470642206,-500.0,0.0003178,2]
[324959766,1714470642216,-308.4611226,0.0003178,2]
[324959767,1714470642225,-500.0,0.0003178,2]
[324959768,1714470642235,-500.0,0.0003178,2]
[324959769,1714470642244,-500.0,0.0003178,2]
[324959770,1714470642254,-500.0,0.0003178,2]
[324959771,1714470642264,-500.0,0.0003178,2]
[324959772,1714470642274,-500.0,0.0003178,2]
[324959773,1714470642283,-602.69,0.0003178,2]
[324959774,1714470642292,-2513.17,0.0003178,2]
[324959775,1714470642302,-500.0,0.0003178,2]
[324959776,1714470642313,-500.0,0.0003178,2]
[324959777,1714470642322,-529.22,0.0003178,2]
[324959778,1714470642332,-1264.34,0.0003178,2]
[324959779,1714470642341,-500.0,0.0003178,2]
[324959780,1714470642350,-500.0,0.0003178,2]
[324959781,1714470642359,-500.0,0.0003178,2]
[324959782,1714470642369,-500.0,0.0003178,2]
[324959783,1714470642378,-500.0,0.0003178,2]
[324959784,1714470642388,-500.0,0.0003178,2]
[324959785,1714470642397,-628.16,0.0003178,2]
[324959786,1714470642407,-500.0,0.0003178,2]
[324959787,1714470642416,-433.29266876,0.0003178,2]
[324959788,1714470642427,-500.0,0.0003178,2]
[324959789,1714470642569,-308.0181576,0.0003178,2]
[324959817,1714470644268,-1235.0,0.00028716,30]
[324959819,1714470644280,-6066.00000008,0.00028716,30]
[324959862,1714471386330,183.85913179,9.999e-05,2]
[324959863,1714471461400,513.49896732,9.999e-05,2]
[324959924,1714471833879,-154.79876161,0.0001705,2]
[324959926,1714471833888,-3051.21388193,0.00017051,2]
[324959928,1714471833897,-928.56039633,0.00017052,2]
[324959930,1714471833907,-154.96530492,0.00017052,2]
[324959932,1714471833916,-154.83333692,0.0001795,2]
[324959934,1714471833925,-24900.0,0.00017952,2]
[324959936,1714471833935,-167.61527,0.00018278,2]
[324959937,1714471833944,-3000.0,0.00018342,2]
[324959938,1714471833954,-150.0,0.000189,2]
[324959939,1714471833963,-520.45497619,0.00018964,2]
[324959940,1714471833972,-514.30635662,0.00018964,2]
[324959941,1714471833982,-324.7272653,0.00018964,2]
[324959942,1714471833992,-548.37810769,0.00018964,2]
[324959943,1714471834003,-155.642877,0.00018964,2]
[324959944,1714471834014,-636.14672363,0.00018965,2]
[324959945,1714471834023,-2000.0,0.000199,2]
[324959946,1714471834033,-230.82445257,0.000199,2]
[324959947,1714471834044,-554.79,0.0001999,3]
[324959948,1714471834052,-277.39,0.0001999,3]
[324959949,1714471834062,-275.71,0.00019998,2]
[324959950,1714471834072,-400.0,0.0002,2]
[324959951,1714471834082,-10481.54893926,0.0002,2]
[324959952,1714471834093,-463.94089548,0.0002,2]
[324959953,1714471834102,-67426.19859378,0.0002,2]
[324959954,1714471834112,-154.79876161,0.0002,2]
[324959955,1714471834121,-17169.15510657,0.0002,2]
[324959966,1714471839033,-832.2,0.0001999,3]
[324959967,1714471839043,-8485.61748417,0.0002,2]
[324959968,1714471839056,-13491.59735767,0.0002,2]
[324959969,1714471839065,-80000.0,0.0002,2]
[324959970,1714471839075,-329.99389325,0.0002,2]
[324959971,1714471839083,-5767.31631135,0.0002,2]
[324959972,1714471839097,-200.0,0.0002,2]
[324959973,1714471839107,-5807.75773021,0.00020913,2]
[324959974,1714471839116,-9322.92256472,0.00021,5]
[324959975,1714471839126,-3285.99886161,0.00021,2]
[324959976,1714471839137,-1109.58,0.0002136,3]
[324959977,1714471839146,-554.78,0.0002136,3]
[324959978,1714471839155,-10000.0,0.00021918,2]
[324959979,1714471839164,-170.70516231,0.00022,2]
[324959980,1714471839173,-305.6041892,0.00022,2]
[324959981,1714471839183,-230.82445255,0.00022093,2]
[324959982,1714471839192,-832.70816135,0.000223,2]
[324959983,1714471839201,-182.874954,0.00022466,2]
[324959984,1714471839211,-280.341938,0.00022466,2]
[324959985,1714471839220,-1370.77204514,0.00023,2]
[324959986,1714471839230,-150.0,0.000239,2]
[324959987,1714471839239,-693.45686249,0.00024,2]
[324959988,1714471839249,-230.82445255,0.00024285,2]
[324959989,1714471839259,-500.0,0.00024657,2]
[324959990,1714471839268,-380.0,0.00024658,2]
[324959991,1714471839278,-152.90057792,0.00024722,2]
[324959992,1714471839287,-152.90057792,0.00024798,2]
[324959993,1714471839297,-154.79876161,0.00025,2]
[324959994,1714471839306,-154.79876161,0.00025,2]
[324959995,1714471839316,-1836.20001103,0.00025,2]
[324959996,1714471839325,-1016.69173145,0.00025,2]
[324959997,1714471839335,-620.00017934,0.0002527,2]
[324959998,1714471839345,-3880.11978972,0.000253,5]
[324959999,1714471839354,-244.35586891,0.00025391,2]
[324960000,1714471839365,-152.79752245,0.00025556,2]
[324960001,1714471839375,-244.35586891,0.00025594,2]
[324960002,1714471839386,-244.35586891,0.00025641,2]
[324960003,1714471839395,-153.89214861,0.00025702,2]
[324960004,1714471839405,-209.82008119,0.00025786,3]
[324960005,1714471839414,-5000.0,0.00026,2]
[324960006,1714471839423,-1966.0,0.00026,2]
[324960007,1714471839432,-11121.55796347,0.00026,2]
[324960008,1714471839442,-244.35586891,0.00026022,2]
[324960009,1714471839451,-157.73975449,0.00026238,2]
[324960010,1714471839460,-244.35586891,0.00026295,2]
[324960011,1714471839469,-230.82445255,0.00026478,2]
[324960012,1714471839478,-620.00000897,0.00026534,2]
[324960013,1714471839487,-391.16491221,0.000266,2]
[324960014,1714471839496,-2176.11591989,0.000266,2]
[324960015,1714471839506,-155.21372883,0.0002686,2]
[324960016,1714471839515,-153.89214861,0.00026911,2]
[324960017,1714471839524,-155.21372883,0.00026954,2]
[324960018,1714471839534,-26322.74706022,0.0002699,2]
[324960019,1714471839543,-8529.21181525,0.00027,2]
[324960020,1714471839553,-158.32775516,0.00027232,2]
[324960021,1714471839563,-166.666666,0.00027397,2]
[324960022,1714471839572,-244.35586891,0.00027448,2]
[324960023,1714471839582,-152.79752245,0.00027539,2]
[324960024,1714471839592,-137989.19028213,0.0002763,2]
[324960025,1714471839601,-620.00000045,0.0002786,2]
[324960026,1714471839611,-220.93587945,0.00028,2]
[324960027,1714471839620,-5000.0,0.00028,5]
[324960028,1714471839629,-166.666666,0.00028038,2]
[324960029,1714471839640,-152.90057792,0.00028084,2]
[324960030,1714471839650,-669.2,0.00028199,3]
[324960031,1714471839659,-280.341938,0.00028493,2]
[324960032,1714471839669,-4507.37037246,0.00028616,7]
[324960033,1714471839678,-25743.1322249,0.00028616,3]
[324960056,1714471843082,-189.36782433,0.00018,2]
[324960057,1714471843093,-901.45733678,0.00028616,3]
[324960080,1714471843982,-11573.28263398,0.00028616,3]
[324960109,1714471848201,-923.85,0.00028616,3]
[324960113,1714472454384,154.84515485,9.999e-05,2]
[324960114,1714472528500,154.84515485,9.999e-05,2]
[324960115,1714472529396,363.99130579,9.999e-05,2]
[324960116,1714472542509,214.61328123,9.999e-05,2]
[324960117,1714472543444,167.48463753,9.999e-05,2]
[324960121,1714473024966,154.84515485,9.999e-05,2]
[324960138,1714473033999,-186.580556,0.00016419,2]
[324960139,1714473034010,-3051.21388193,0.00017318,2]
[324960140,1714473034019,-167.94262328,0.0001732,2]
[324960141,1714473034028,-5808.88501187,0.00017416,2]
[324960142,1714473034038,-513.47404116,0.0001742,2]
[324960143,1714473034047,-156.16553835,0.0001742,2]
[324960144,1714473034056,-155.1873773,0.00017421,2]
[324960145,1714473034066,-24900.0,0.00017422,2]
[324960146,1714473034075,-167.61527,0.00017473,2]
[324960147,1714473034084,-3000.0,0.00017732,2]
[324960148,1714473034093,-189.3964787,0.00018,2]
[324960149,1714473034103,-1685.87696649,0.000189,2]
[324960150,1714473034112,-178.10195469,0.0001906,2]
[324960151,1714473034122,-2588.41116025,0.0001906,2]
[324960152,1714473034131,-309.61300308,0.0001906,2]
[324960153,1714473034141,-193.65224844,0.0001906,2]
[324960154,1714473034150,-242.41998623,0.0001906,2]
[324960155,1714473034159,-1676.30195278,0.0001906,2]
[324960156,1714473034168,-354.96876268,0.00019061,2]
[324960157,1714473034177,-155.08097712,0.00019061,2]
[324960158,1714473034187,-185.81629862,0.00019061,2]
[324960159,1714473034196,-6541.35697351,0.00019062,2]
[324960193,1714473038550,-13654.46737309,0.00019062,2]
[324960194,1714473038559,-24966.57152727,0.00019063,2]
[324960195,1714473038569,-160.436186,0.00019178,2]
[324960196,1714473038579,-189.03839214,0.00019898,2]
[324960197,1714473038588,-274.98102988,0.000199,2]
[324960198,1714473038598,-858.68,0.0001999,3]
[324960200,1714473038608,-241.71320654,0.0002,2]
[324960202,1714473038617,-67426.19859378,0.0002,2]
[324960203,1714473038627,-10481.54893926,0.0002,2]
[324960204,1714473038636,-80000.0,0.0002,2]
[324960205,1714473038645,-329.99389325,0.0002,2]
[324960206,1714473038655,-154.79876161,0.0002,2]
[324960207,1714473038665,-525.07533493,0.0002,4]
[324960208,1714473038674,-285.23432465,0.0002,2]
[324960209,1714473038684,-154.81422293,0.0002,2]
[324960210,1714473038694,-321.919457,0.0002,2]
[324960211,1714473038703,-154.81422293,0.0002,2]
[324960212,1714473038713,-278.367607,0.0002,2]
[324960213,1714473038722,-400.0,0.0002,2]
[324960214,1714473038732,-200.0,0.0002,2]
[324960215,1714473038741,-160.0,0.000201,2]
[324960216,1714473038750,-265.62372421,0.00020544,2]
[324960217,1714473038760,-320.0,0.00020648,2]
[324960218,1714473038770,-154.97593234,0.00020806,2]
[324960219,1714473038779,-392.65173522,0.00020811,2]
[324960220,1714473038788,-480.0,0.00021196,2]
[324960221,1714473038798,-1431.14,0.0002136,3]
[324960222,1714473038807,-1717.36,0.0002136,3]
[324960223,1714473038816,-640.0,0.00021744,2]
[324960224,1714473038825,-10000.0,0.00021918,2]
[324960225,1714473038835,-1547.90345751,0.00021999,2]
[324960226,1714473038845,-305.6041892,0.00022,2]
[324960227,1714473038854,-170.70516231,0.00022,2]
[324960228,1714473038863,-197.21049635,0.00022,2]
[324960229,1714473038873,-197.21049635,0.00022,2]
[324960230,1714473038883,-308.29704128,0.00022292,2]
[324960231,1714473038892,-185.889711,0.00022466,2]
[324960232,1714473038902,-165.414129,0.00022466,2]
[324960233,1714473038912,-330.926184,0.00022466,2]
[324960234,1714473038921,-1370.77204514,0.00023,2]
[324960235,1714473038931,-5000.0,0.00023,2]
[324960236,1714473038941,-5000.0,0.00023,2]
[324960237,1714473038950,-1685.87696649,0.000239,2]
[324960238,1714473038960,-693.45686249,0.00024,2]
[324960239,1714473038969,-500.0,0.00024657,2]
[324960240,1714473038978,-500.0,0.00024657,2]
[324960241,1714473038988,-200.0,0.00024658,2]
[324960242,1714473038998,-200.0,0.00024658,15]
[324960243,1714473039007,-380.0,0.00024658,2]
[324960244,1714473039016,-500.0,0.00024712,2]
[324960245,1714473039025,-157.73975448,0.00024754,2]
[324960246,1714473039035,-500.0,0.00024767,2]
[324960247,1714473039044,-153.8921486,0.00024792,2]
[324960248,1714473039053,-500.0,0.00024821,2]
[324960249,1714473039062,-500.0,0.00024876,2]
[324960250,1714473039071,-500.0,0.00024931,2]
[324960251,1714473039081,-500.0,0.00024986,2]
[324960252,1714473039091,-154.79876161,0.00025,2]
[324960253,1714473039100,-154.79876161,0.00025,2]
[324960254,1714473039109,-154.79876161,0.00025,2]
[324960255,1714473039118,-154.79876161,0.00025,2]
[324960256,1714473039127,-155.088,0.00025,15]
[324960257,1714473039138,-500.0,0.00025041,2]
[324960258,1714473039147,-153.8921486,0.00025058,2]
[324960259,1714473039156,-500.0,0.00025095,2]
[324960260,1714473039166,-500.0,0.0002515,2]
[324960261,1714473039175,-1193.8818459,0.00025182,2]
[324960262,1714473039185,-500.0,0.00025205,2]
[324960263,1714473039194,-152.90057792,0.00025219,2]
[324960264,1714473039204,-157.73975448,0.00025231,2]
[324960265,1714473039213,-500.0,0.0002526,2]
[324960266,1714473039222,-155.21372883,0.0002528,2]
[324960267,1714473039231,-485.68973665,0.0002531,2]
[324960268,1714473039240,-500.0,0.00025315,2]
[324960269,1714473039249,-500.0,0.00025369,2]
[324960270,1714473039258,-152.90057792,0.00025377,2]
[324960271,1714473039267,-500.0,0.00025424,2]
[324960272,1714473039277,-155.21372883,0.00025434,2]
[324960273,1714473039286,-500.0,0.00025479,2]
[324960274,1714473039295,-500.0,0.00025534,2]
[324960275,1714473039304,-500.0,0.00025589,2]
[324960276,1714473039313,-500.0,0.00025643,2]
[324960277,1714473039322,-500.0,0.00025698,2]
[324960278,1714473039331,-500.0,0.00025753,2]
[324960279,1714473039341,-209.82008119,0.00025786,3]
[324960280,1714473039350,-500.0,0.00025808,2]
[324960281,1714473039361,-500.0,0.00025863,2]
[324960282,1714473039371,-206.56888876,0.00025917,2]
[324960283,1714473039380,-5000.0,0.00026,2]
[324960284,1714473039389,-2822.94323981,0.00026,9]
[324960285,1714473039398,-1966.3541,0.00026,2]
[324960286,1714473039409,-157.73975448,0.00026027,2]
[324960287,1714473039418,-152.79752244,0.00026136,2]
[324960288,1714473039428,-153.8921486,0.00026237,2]
[324960289,1714473039439,-485.68973665,0.00026257,2]
[324960290,1714473039448,-157.73975448,0.00026372,2]
[324960291,1714473039457,-648.6940923,0.00026441,2]
[324960292,1714473039466,-157.73975448,0.00026537,2]
[324960293,1714473039475,-485.68973665,0.00026899,2]
[324960294,1714473039485,-155.21372883,0.00026928,2]
[324960295,1714473039494,-8529.21181525,0.00027,2]
[324960296,1714473039503,-485.68973665,0.0002724,2]
[324960297,1714473039513,-152.79752244,0.00027269,2]
[324960298,1714473039522,-152.90057792,0.00027301,2]
[324960299,1714473039532,-166.666666,0.00027397,2]
[324960300,1714473039541,-157.73975448,0.00027626,2]
[324960301,1714473039551,-485.68973665,0.00027664,2]
[324960302,1714473039560,-621.43470461,0.00027763,2]
[324960303,1714473039569,-152.90057792,0.00027884,2]
[324960304,1714473039578,-220.93587945,0.00028,2]
[324960305,1714473039588,-166.666666,0.00028038,2]
[324960306,1714473039598,-152.79752244,0.00028161,2]
[324960307,1714473039608,-1202.7,0.00028183,3]
[324960308,1714473039617,-157.73975448,0.00028193,2]
[324960309,1714473039627,-152.90057792,0.00028259,2]
[324960310,1714473039637,-152.90057792,0.00028466,2]
[324960311,1714473039647,-165.546525,0.00028493,2]
[324960312,1714473039656,-165.546525,0.00028493,120]
[324960313,1714473039665,-330.926184,0.00028493,2]
[324960314,1714473039674,-44444.0,0.00028516,3]
[324960315,1714473039684,-155.21372883,0.00028518,2]
[324960316,1714473039693,-157.73975448,0.00028522,2]
[324960317,1714473039703,-151.48563567,0.00028559,2]
[324960318,1714473039712,-155.21372883,0.00028576,2]
[324960319,1714473039722,-3000.0,0.00028615,10]
[324960320,1714473039731,-3000.0,0.00028615,10]
[324960321,1714473039741,-3000.0,0.00028615,10]
[324960322,1714473039751,-3000.0,0.00028615,10]
[324960323,1714473039760,-3000.0,0.00028615,10]
[324960324,1714473039770,-3000.0,0.00028615,10]
[324960325,1714473039779,-3000.0,0.00028615,10]
[324960326,1714473039788,-3000.0,0.00028615,10]
[324960327,1714473039798,-18029.48148985,0.00028616,7]
[324960328,1714473039807,-2000.0,0.00028616,2]
[324960329,1714473039818,-10598.56422738,0.00028616,2]
[324960330,1714473039827,-1564.25196696,0.00028616,2]
[324960331,1714473039836,-1452.62675219,0.00028616,2]
[324960332,1714473039847,-154.79876161,0.00028616,2]
[324960333,1714473039856,-154.79876161,0.00028616,2]
[324960334,1714473039865,-154.81422293,0.00028616,2]
[324960335,1714473039874,-1297.83986334,0.00028616,2]
[324960336,1714473039884,-199.8929869,0.00028616,2]
[324960337,1714473039893,-154.79876161,0.00028616,2]
[324960338,1714473039903,-3956.05028615,0.00028616,10]
[324960339,1714473039912,-35033.61965414,0.00028616,14]
[324960407,1714473040842,-394.37627338,0.00028616,14]
[324960424,1714473043713,-742.32089533,0.00017373,2]
[324960425,1714473043722,-154.84515485,0.00019061,2]
[324960426,1714473043731,-150.0,0.00028228,2]
[324960427,1714473043741,-5123.80741452,0.00028616,14]
[324960769,1714473080235,199.8929869,9.999e-05,2]
[324960770,1714473092094,122.12422489,9.999e-05,2]
[324960771,1714473092128,1175.71563845,9.999e-05,2]
[324960772,1714473355050,460.20366438,9.999e-05,2]
[324960773,1714473385279,551.01173019,9.999e-05,2]
[324960775,1714473561292,-3956.05028615,0.0002,10]
[324960788,1714474036895,551.01173019,9.999e-05,2]
[324960790,1714474102747,890.92384481,9.999e-05,2]
[324960791,1714474120835,3412.03545766,9.999e-05,2]
[324960792,1714474126500,8557.73674535,9.999e-05,2]
[324960793,1714474132562,964.61124368,9.999e-05,2]
[324960794,1714474146356,235.83612481,9.999e-05,2]
[324960795,1714474153067,154.8,0.000266,120]
[324960796,1714474213028,299.77,0.000266,120]
[324960825,1714474232604,-1736.23336736,0.00016472,2]
[324960828,1714474232616,-1263.76663264,0.00016472,2]
[324960830,1714474232626,-583.24272919,0.00016862,2]
[324960832,1714474232636,-551.01173019,0.00016961,2]
[324960834,1714474232645,-163.15085687,0.00016962,2]
[324960835,1714474232655,-1661.24943159,0.00017167,2]
[324960838,1714474232667,-361.8150045,0.00017167,2]
[324960840,1714474232678,-1028.14944584,0.00017167,2]
[324960842,1714474232687,-3712.74011988,0.00017444,2]
[324960844,1714474232697,-218.83347451,0.00017684,2]
[324960846,1714474232706,-155.07864978,0.00017684,2]
[324960848,1714474232716,-308.22783181,0.00017684,2]
[324960850,1714474232725,-384.5867347,0.00017684,2]
[324960852,1714474232738,-228.44373895,0.00017684,2]
[324960854,1714474232748,-157.80708891,0.00017684,2]
[324960856,1714474232757,-355.96806476,0.00017684,2]
[324960858,1714474232766,-497.39509606,0.00017684,2]
[324960860,1714474232775,-154.9402763,0.00017684,2]
[324960862,1714474232785,-155.04940114,0.00017684,2]
[324960864,1714474232794,-980.56647278,0.00017684,2]
[324960866,1714474232804,-1091.35500072,0.00017684,2]
[324960868,1714474232818,-1904.97856926,0.00017684,2]
[324960870,1714474232827,-1202.53293628,0.00017684,2]
[324960872,1714474232837,-362.18450158,0.00017684,2]
[324960874,1714474232847,-1877.98244555,0.00017684,2]
[324960876,1714474232856,-154.84515485,0.00017684,2]
[324960878,1714474232865,-241.36985952,0.00017684,2]
[324960880,1714474232875,-538.89336842,0.00017684,2]
[324960882,1714474232885,-813.1391506,0.00017684,2]
[324960884,1714474232894,-287.21322194,0.00017684,2]
[324960886,1714474232903,-155.13000543,0.00017685,2]
[324960888,1714474232913,-1621.09215219,0.00017685,2]
[324960890,1714474232923,-895.06792294,0.00017685,2]
[324960892,1714474232932,-17860.024002,0.00017686,2]
[324960894,1714474232941,-189.3964787,0.00018,2]
[324960896,1714474232951,-163.15085685,0.00018431,2]
[324960898,1714474232960,-603.84859883,0.000185,2]
[324960900,1714474232969,-155.52032063,0.00018667,2]
[324960902,1714474232979,-155.77634172,0.00018667,2]
[324960904,1714474232988,-574.69239176,0.00018667,2]
[324960906,1714474232997,-157.68040052,0.00018668,2]
[324960908,1714474233006,-1244.52297916,0.000189,2]
[324960910,1714474233015,-927.87368973,0.00018998,2]
[324960912,1714474233025,-163.15085685,0.000199,2]
[324960914,1714474233034,-274.98102988,0.000199,2]
[324960916,1714474233043,-160.0,0.00019994,2]
[324960918,1714474233052,-237.64873836,0.00019998,2]
[324960920,1714474233064,-265.62372421,0.00019998,2]
[324960922,1714474233073,-154.97593234,0.00019998,2]
[324960924,1714474233082,-302.80653186,0.00019998,2]
[324960926,1714474233091,-276.96911954,0.00019998,2]
[324960928,1714474233101,-155.05504485,0.00019999,2]
[324960930,1714474233110,-154.86062544,0.00019999,2]
[324960932,1714474233119,-1547.90345751,0.00019999,2]
[324960934,1714474233128,-180.66138684,0.00019999,2]
[324960936,1714474233137,-422.99435536,0.00019999,2]
[324960938,1714474233146,-6385.90093921,0.0002,2]
[324961181,1714474238974,-718.0,0.0001999,3]
[324961183,1714474238987,-593.43,0.0001999,3]
[324961185,1714474238997,-474.17740683,0.00019999,2]
[324961187,1714474239006,-157.36241004,0.00019999,2]
[324961189,1714474239016,-4095.64800005,0.0002,2]
[324961191,1714474239025,-2490.45667456,0.0002,2]
[324961193,1714474239037,-726.39893815,0.0002,2]
[324961395,1714474240912,-64209.34298107,0.0002,2]
[324961397,1714474240923,-154.84515485,0.0002,2]
[324961399,1714474240932,-154.84515485,0.0002,2]
[324961401,1714474240941,-633.38559165,0.0002,2]
[324961403,1714474240950,-154.84515485,0.0002,2]
[324961405,1714474240959,-278.367607,0.0002,2]
[324961407,1714474240968,-241.71320654,0.0002,2]
[324961409,1714474240977,-15802.10414035,0.0002,2]
[324961553,1714474244278,-2000.0,0.000199,2]
[324961555,1714474244287,-4161.4265353,0.0002,2]
[324961558,1714474244300,-616.36839507,0.0002,2]
[324961583,1714474246880,-189.3964787,0.00018,2]
[324961584,1714474246889,-284.78092813,0.00019999,2]
[324961589,1714474837061,1310.23987038,9.999e-05,2]
[324961836,1714475289025,873.49324692,9.999e-05,2]
[324962469,1714475444716,-727.9110391,0.00015922,2]
[324962471,1714475444726,-3051.21388193,0.00015923,2]
[324962472,1714475444735,-24592.3714458,0.00015928,2]
[324962475,1714475444745,-3000.0,0.00016144,2]
[324962477,1714475444754,-186.580555,0.0001634,2]
[324962480,1714475444764,-305.514767,0.00016381,2]
[324962483,1714475444773,-163.104642,0.0001654,2]
[324962486,1714475444783,-584.2341499,0.00016605,2]
[324962488,1714475444792,-189.03839214,0.000175,2]
[324962489,1714475444802,-154.79876161,0.00017549,2]
[324962490,1714475444814,-154.81422293,0.00017549,2]
[324962491,1714475444823,-155.04085459,0.00017549,2]
[324962492,1714475444834,-296.13912826,0.00017549,2]
[324962493,1714475444843,-304.49738623,0.0001755,2]
[324962494,1714475444853,-1963.23962861,0.000176,2]
[324962495,1714475444862,-1674.76230276,0.00018,2]
[324962496,1714475444871,-189.3964787,0.00018,2]
[324962497,1714475444881,-7283.2037407,0.00018799,2]
[324962498,1714475444891,-1221.32413212,0.000189,2]
[324962499,1714475444900,-1575.31939472,0.00018998,2]
[324962500,1714475444910,-205.32395206,0.00018999,2]
[324962501,1714475444919,-160.453387,0.00019178,2]
[324962502,1714475444928,-2000.0,0.000199,2]
[324962503,1714475444937,-891.93769572,0.000199,2]
[324962504,1714475444947,-1092.86,0.0001999,3]
[324962505,1714475444956,-2302.99828065,0.00019998,2]
[324962506,1714475444965,-403.80422203,0.00019999,2]
[324962507,1714475444975,-59420.10092928,0.0002,2]
[324962508,1714475444984,-285.23432465,0.0002,2]
[324962509,1714475444993,-321.919457,0.0002,2]
[324962510,1714475445002,-525.07533493,0.0002,4]
[324962511,1714475445011,-400.0,0.0002,2]
[324962512,1714475445020,-3956.05028615,0.0002,10]
[324962513,1714475445029,-10481.54893926,0.0002,2]
[324962514,1714475445040,-154.81422293,0.0002,2]
[324962515,1714475445049,-329.99389325,0.0002,2]
[324962516,1714475445058,-154.81422293,0.0002,2]
[324962517,1714475445069,-67426.19859378,0.0002,2]
[324962518,1714475445078,-154.81422293,0.0002,2]
[324962519,1714475445087,-241.71320654,0.0002,2]
[324962520,1714475445097,-278.367607,0.0002,2]
[324962521,1714475445107,-5698.18523272,0.0002,2]
[324962552,1714475516111,154.79876161,9.999e-05,2]
[324962557,1714476053610,379.24165137,9.999e-05,2]
[324962559,1714476317475,790.0,0.000225,30]
[324962569,1714476634004,-379.24165137,0.00017833,2]
[324962571,1714476634014,-3051.21388193,0.00017834,2]
[324962573,1714476634023,-160.17143125,0.00017836,2]
[324962576,1714476634033,-3000.0,0.00017937,2]
[324962579,1714476634042,-186.580556,0.00017986,2]
[324962582,1714476634051,-164.885654,0.00017989,2]
[324962584,1714476634060,-4180.0050094,0.00018013,2]
[324962586,1714476634069,-1902.3019495,0.00018015,2]
[324962588,1714476634083,-392.65173522,0.00018194,2]
[324962590,1714476634092,-160.453387,0.00019178,2]
[324962592,1714476634101,-549.92372763,0.000199,2]
[324962594,1714476634110,-766.80102448,0.000199,2]
[324962596,1714476634119,-2000.0,0.000199,2]
[324962598,1714476634129,-786.2842181,0.000199,2]
[324962600,1714476634138,-699.61,0.0001999,3]
[324962602,1714476634147,-699.6,0.0001999,3]
[324962604,1714476634156,-349.8,0.0001999,3]
[324962606,1714476634166,-174.9,0.0001999,3]
[324962607,1714476634175,-524.75,0.0001999,3]
[324962609,1714476634184,-190.59605249,0.00019998,2]
[324962612,1714476634194,-520.45497619,0.00019998,2]
[324962613,1714476634203,-514.30635662,0.00019998,2]
[324962615,1714476634212,-154.98114259,0.00019999,2]
[324962617,1714476634222,-275.71,0.00019999,2]
[324962619,1714476634231,-636.14672363,0.00019999,2]
[324962621,1714476634241,-7793.41212495,0.0002,2]
[324962623,1714476634250,-5767.31631135,0.0002,2]
[324962625,1714476634259,-643.17591172,0.0002,10]
[324962627,1714476634268,-329.99389325,0.0002,2]
[324962629,1714476634278,-10481.54893926,0.0002,2]
[324962631,1714476634287,-154.79876161,0.0002,2]
[324962633,1714476634296,-67426.19859378,0.0002,2]
[324962635,1714476634305,-15572.16354558,0.0002,2]
[324962845,1714476639276,-25616.46760596,0.0002,2]
[324962846,1714476639288,-297.97576824,0.0002,2]
[324962906,1714476644278,-536.54428684,0.0002,2]
[324962909,1714476644292,-37976.84879338,0.0002,2]
[324962912,1714476644302,-241.71320654,0.0002,2]
[324962914,1714476644311,-400.0,0.0002,2]
[324962916,1714476644320,-154.79876161,0.0002,2]
[324962918,1714476644329,-200.0,0.0002,2]
[324962920,1714476644338,-814.21608808,0.000204,2]
[324962922,1714476644347,-3000.0,0.00020547,2]
[324962924,1714476644356,-3000.0,0.00020547,2]
[324962926,1714476644365,-3000.0,0.00020547,2]
[324962928,1714476644374,-3000.0,0.00020547,2]
[324962930,1714476644383,-3000.0,0.00020547,2]
[324962932,1714476644392,-218.24626309,0.00020912,2]
[324962934,1714476644401,-154.96504573,0.00020912,2]
[324962936,1714476644410,-155.12266003,0.00020912,2]